[Event "European Women-ch 2023"]
[Site "Petrovac"]
[Date "2023.03.18"]
[Round "1.17"]
[White "Tsolakidou, Stavroula"]
[Black "Slaba, Andrea"]
[Result "1-0"]
[ECO "B12"]
[WhiteElo "2358"]
[BlackElo "2061"]
[Annotator "TA"]
[PlyCount "75"]
[EventDate "2023.03.15"]
[EventType "swiss"]
[EventCountry "MNE"]
[SourceTitle "playchess.com"]
[Source "ChessBase"]
[SourceQuality "1"]
[TimeControl "40/5400+30:1800+30"]

{[%evp 9,75,20,32,33,44,33,45,8,80,76,78,90,110,112,95,99,89,56,57,22,28,39,59,39,53,51,77,66,131,91,122,55,80,20,45,34,82,87,177,177,183,122,136,123,129,122,240,239,228,-51,-52,-58,-65,-69,0,0,0,0,8,18,29,0,0,0,29980,29981,29980,29980]} 1. e4 {[%emt 0:00:06]} c6 {[%emt 0:00:08]} 2. d4 {[%emt 0:00:14]} d5 {[%emt 0:00:06]} 3. e5 {[%emt 0:00:07]} c5 {[%emt 0:00:04]} 4. Nf3 {[%emt 0:00:37]} Nc6 {[%emt 0:02:41]} 5. dxc5 {[%emt 0:09:30]} e6 {[%emt 0:03:46]} 6. Be3 {[%emt 0:04:24] B12: Caro-Kann: Advance Variation.} Nh6 {[%emt 0:05:26]} 7. c3 {[%emt 0:04:36]} Nf5 {[%emt 0:05:50]} 8. Bd4 $1 {[%emt 0:04:04] White is slightly better. The main line 8.Bd4 scores better than 8.Qd2.} f6 {[%emt 0:04:40]} (8... Bd7 $11) 9. Bb5 $16 {[%emt 0:03:18]} Bd7 {[%emt 0:02:11]} 10. Bxc6 {[%emt 0:05:18]} Bxc6 {[%emt 0:03:58]} 11. O-O {[%emt 0:00:12] [#]} Be7 $146 {[%emt 0:01:55]} ({Predecessor:} 11... Rc8 12. Re1 Bd7 13. b4 b6 14. cxb6 axb6 15. Qd3 Nxd4 16. Qxd4 Be7 17. exf6 gxf6 {½-½ Mrdja,M (2402)-Valsecchi,A (2338) Codogno op 3rd 2011 (3)}) 12. Re1 {[%emt 0:01:26]} Bd7 {[%emt 0:00:40]} 13. exf6 {[%emt 0:02:49]} gxf6 {[%emt 0:00:34]} 14. b4 {[%emt 0:13:03]} (14. Ng5 {looks sharper.} Ng7 15. Qd3 Kf8 16. Nf3) 14... O-O {[%emt 0:01:32]} 15. Na3 {[%emt 0:07:37][%cal Bb1a3,Ba3c2,Bc2e3][%mdl 32]} a5 {[%emt 0:04:25]} 16. Nc2 {[%emt 0:01:16]} axb4 {[%emt 0:03:51]} 17. cxb4 {[%emt 0:01:01]} Nxd4 {[%emt 0:00:36]} 18. Qxd4 {[%emt 0:02:07]} ({But not} 18. Ncxd4 e5 $11) 18... Qe8 {[%emt 0:05:41]} (18... Kh8 $14) 19. Ne3 {[%emt 0:04:08]} Qf7 {[%emt 0:03:53]} 20. Qd3 {[%emt 0:17:10]} (20. a4 $16) 20... Kh8 {[%emt 0:16:16]} 21. Re2 {[%emt 0:00:23]} (21. Nd4 $16) 21... Qg7 {[%emt 0:01:00][%cal Ob7b6]} 22. Rae1 {[%emt 0:01:34][%cal Oe3f5]} Rg8 {[%emt 0:03:52]} (22... Bd8 $14 {is superior.}) 23. g3 {[%emt 0:01:46][%cal Oe3f5] Hoping for Nf5!} Rae8 {[%emt 0:01:29]} (23... Bf8 $16) 24. Nd4 $18 {[%emt 0:02:20]} Bd8 {[%emt 0:04:19]} 25. b5 {[%emt 0:01:59]} (25. Nb5 $18) 25... e5 $16 {[%emt 0:01:15] [#]} 26. c6 $1 {[%emt 0:01:30] White has more active pieces.} bxc6 {[%emt 0:03:30]} 27. bxc6 {[%emt 0:00:25]} Bc8 {[%emt 0:00:49]} (27... Bh3 $16 {keeps fighting.}) 28. Nxd5 $18 {[%emt 0:04:25] Nb5 would be deadly. A dynamic duo of knights.} Ba5 {[%emt 0:00:12]} 29. Rc1 {[%emt 0:04:06]} ({White has to play} 29. Nf5 $18 Bxf5 30. Qxf5 Bxe1 31. Rxe1) 29... exd4 $15 {[%emt 0:00:27]} 30. Rxe8 {[%emt 0:00:04]} Rxe8 {[%emt 0:00:11]} 31. Qxd4 {[%emt 0:00:13][%cal Oc6c7]} f5 {[%emt 0:09:03]} ({Black should play} 31... Re5 $15) 32. Qc5 $11 {[%emt 0:03:27]} Bd2 {[%emt 0:02:27]} 33. Rd1 $36 {[%emt 0:00:35][%mdl 2048] White is more active.} Bg5 {[%emt 0:04:02]} 34. c7 {[%emt 0:00:25]} f4 {[%emt 0:02:07]} 35. Nb6 {[%emt 0:00:36] Black must now prevent Nxc8.} (35. a4 $5 {[%cal Ra4a5]}) 35... fxg3 {[%emt 0:01:17]} 36. hxg3 {[%emt 0:00:12] Strongly threatening Qc6.} Be3 $2 {[%emt 0:01:26][%mdl 8192] [#]} 37. Qxe3 {[%emt 0:00:11][%mdl 64] Deflection} (37. fxe3 {leads to mate.} Qxg3+ 38. Kf1 Qf3+ 39. Ke1 Rxe3+ 40. Kd2 Rd3+ 41. Kc2 Qxd1+ 42. Kb2 Rd2+ 43. Ka3 Qf3+ 44. Kb4 Rb2+ 45. Ka5 Rxa2+ 46. Na4 Qa8+ 47. Kb4 Qxa4+ 48. Kc3 Rc2+ {[%mdl 64] Skewer} 49. Kd3 Rxc5 50. Ke3 Rc2 51. Kf3 Qd4 52. Kg3 Qg4#) 37... Rxe3 {[%emt 0:00:06]} 38. Rd8+ {[%emt 0:00:04] Weighted Error Value: White=0.30/Black=0.36} 1-0

[Event "European Women-ch 2023"]
[Site "Petrovac"]
[Date "2023.03.18"]
[Round "1.17"]
[White "Gueci, Tea"]
[Black "Golsta, Ramona"]
[Result "1/2-1/2"]
[ECO "B51"]
[WhiteElo "2227"]
[BlackElo "1760"]
[Annotator "TA"]
[PlyCount "86"]
[EventDate "2023.03.15"]
[EventType "swiss"]
[EventCountry "MNE"]
[SourceTitle "playchess.com"]
[Source "ChessBase"]
[SourceQuality "1"]
[TimeControl "40/5400+30:1800+30"]

{[%evp 16,86,25,36,23,14,15,23,18,22,23,21,39,40,52,63,58,50,89,92,89,89,57,0,0,0,0,0,0,0,0,0,14,11,14,0,0,0,0,0,0,0,0,0,0,-43,-55,-55,-60,-49,-68,-129,138,143,241,183,151,0,0,-25,-18,-699,-294,-264,-202,-1122,0,0,0,0,0,0,0]} 1. e4 {[%emt 0:00:03]} c5 {[%emt 0:00:05]} 2. Nf3 {[%emt 0:00:21]} Nc6 {[%emt 0:00:07]} 3. Bb5 {[%emt 0:00:09]} d6 {[%emt 0:00:08]} 4. O-O {[%emt 0:00:14]} Bd7 {[%emt 0:00:04]} 5. Re1 {[%emt 0:00:26]} Nf6 {[%emt 0:00:18]} 6. c3 {[%emt 0:00:17]} a6 {[%emt 0:00:05]} 7. Bf1 {[%emt 0:00:07]} Bg4 {[%emt 0:00:09]} 8. h3 {[%emt 0:00:38]} Bxf3 {[%emt 0:00:05]} 9. Qxf3 {[%emt 0:00:06]} e6 {[%emt 0:00:05] B51: Sicilian: Moscow Variation (3 Bb5+) without 3...Bd7.} 10. d3 {[%emt 0:03:48]} Be7 {[%emt 0:00:08]} 11. Qg3 {[%emt 0:06:05]} O-O {[%emt 0:00:30] White has an edge.} 12. Nd2 {[%emt 0:00:51]} d5 {[%emt 0:08:23]} 13. e5 {[%emt 0:05:31] [#]} Ne8 $146 {[%emt 0:07:09]} ({Predecessor:} 13... Nd7 14. Nf3 Kh8 15. h4 b5 16. Qg4 Rb8 17. g3 d4 18. Qe4 Qc7 19. Bg2 dxc3 20. bxc3 {½-½ Ajay,K (2436)-Baghdasaryan,V (2267) Chennai op 13th 2022 (7)}) 14. Nf3 {[%emt 0:01:29]} f6 {[%emt 0:14:07]} 15. exf6 {[%emt 0:14:50]} Rxf6 {[%emt 0:00:40]} 16. h4 {[%emt 0:00:34]} (16. Bg5 $5 {[%cal Rg5f6]} Rf5 17. Bf4 $11) 16... Nd6 {[%emt 0:22:50]} 17. Qh3 {[%emt 0:03:34]} Qd7 {[%emt 0:06:35]} 18. Bg5 {[%emt 0:06:41]} Rf5 {[%emt 0:05:57]} 19. g4 {[%emt 0:02:16]} (19. Bxe7 $14 Qxe7 20. Ng5) 19... Rf7 $11 {[%emt 0:01:42]} 20. Bg2 {[%emt 0:01:40]} Raf8 {[%emt 0:03:01]} 21. Re2 {[%emt 0:02:39]} Ne8 {[%emt 0:05:24]} 22. Rae1 {[%emt 0:05:10]} Nc7 {[%emt 0:00:16]} 23. Bxe7 {[%emt 0:08:23]} Rxe7 {[%emt 0:02:05]} 24. Qg3 {[%emt 0:03:12]} Ref7 {[%emt 0:09:40]} 25. g5 {[%emt 0:01:48]} Rf4 {[%emt 0:04:59]} 26. Nh2 {[%emt 0:01:07]} Qf7 {[%emt 0:00:37]} 27. Ng4 {[%emt 0:02:30][%cal Og4f6]} Kh8 {[%emt 0:02:22]} 28. f3 {[%emt 0:04:14]} b5 {[%emt 0:01:59]} 29. Nf6 {[%emt 0:07:32]} Rf5 {[%emt 0:00:19]} (29... e5 $5 30. Ng4 $8 d4 $11) 30. Bh3 {[%emt 0:02:59]} (30. Ng4 $5 {[%cal Rg3d6]} Qe7 31. Rf2 $11) 30... gxf6 {[%emt 0:00:25]} 31. Bxf5 {[%emt 0:00:10]} exf5 {[%emt 0:00:26]} 32. Qd6 {[%emt 0:00:22][%csl LRc5,LRc6] Repels Qd7} Ne5 {[%emt 0:00:50]} 33. Rf1 {[%emt 0:07:01]} ({White should try} 33. Kf1 $15) 33... Rc8 $2 {[%emt 0:02:36][%mdl 8192]} (33... Nxd3 34. Re7 Qg6 35. Rxc7 $18 (35. Qxc7 fxg5 36. h5 Qh6 $11)) (33... Ne8 $17 {stays on course.} 34. Qxc5 Ng7) 34. f4 $1 $16 {[%emt 0:00:59]} Ng4 {[%emt 0:00:46]} (34... Nxd3 $2 35. Re7 Qg6 36. h5 (36. Rxc7 Rxc7 37. Qd8+ Qg8 $11)) (34... Ng6 $16) 35. Re7 $36 {[%emt 0:00:55][%mdl 2048] Keeping Black busy.} Qh5 {[%emt 0:00:24][%cal Oh5h4] [#] White must now prevent ...Qxh4!} 36. Rxc7 $2 {[%emt 0:02:10] White is much more active.} (36. Rfe1 $1 $16 Rg8 37. Qxc7 (37. R1e2 Ne8 $15)) 36... Rg8 $11 {[%emt 0:00:37]} 37. Qxd5 {[%emt 0:07:03] And now Re1 would win.} (37. g6 {gets mated.} Qxg6 38. Qxd5 Ne3+ 39. Kf2 Nxd5) 37... Qxh4 {[%emt 0:00:17][%csl Gg4][%cal Rh4h2]} 38. Qg2 {[%emt 0:00:44][%mdl 8192] Wards off Qh2+} (38. Qxc5 $2 Qh2#) (38. Qh1 $11 Qg3+ 39. Qg2 Qe3+ 40. Kh1 fxg5 41. Ra7) 38... Ne3 {[%emt 0:00:27]} (38... fxg5 $142 39. fxg5 (39. Rxc5 $2 {perishes.} Ne3 $19) 39... Ne3) 39. Qf3 $19 {[%emt 0:00:36]} Nxf1 {[%emt 0:00:49]} 40. Kxf1 $2 {[%emt 0:00:00] [#]} (40. Qc6 Qg4+ 41. Kxf1 Qxf4+ 42. Ke2 Qg4+ 43. Kd2 Qxg5+ 44. Kc2) 40... fxg5 $2 {[%emt 0:00:00]} ({Better is} 40... Re8 $1 $19 {[%cal Re8e1] ( -> ...Re1+)} 41. Kg2 fxg5 42. Rxc5 gxf4 43. Rxf5 Rg8+ 44. Kf1 Qh2) 41. Qe3 $11 {[%emt 0:09:05] White threatens Qe5+ and mate. The position is equal.} Qxf4+ {[%emt 0:13:05]} 42. Qxf4 {[%emt 0:00:05]} gxf4 {[%emt 0:00:07]} 43. Rxc5 {[%emt 0:02:29]} f3 {[%emt 0:08:26] Weighted Error Value: White=0.33/Black=0.57} 1/2-1/2

[Event "European Women-ch 2023"]
[Site "Petrovac"]
[Date "2023.03.18"]
[Round "1.18"]
[White "Valkova, Angelika"]
[Black "Cyfka, Karina"]
[Result "0-1"]
[ECO "E23"]
[WhiteElo "2055"]
[BlackElo "2350"]
[Annotator "TA"]
[PlyCount "184"]
[EventDate "2023.03.15"]
[EventType "swiss"]
[EventCountry "MNE"]
[SourceTitle "playchess.com"]
[Source "ChessBase"]
[SourceQuality "1"]
[TimeControl "40/5400+30:1800+30"]

{[%evp 14,184,-11,-14,0,0,-2,-9,0,-5,0,-25,-19,-22,-14,-27,-22,-47,-35,-35,-35,-55,-35,-43,-35,-37,-34,-39,-32,-32,-34,-58,-34,-43,-46,-45,-32,-95,-91,-115,-59,-62,-58,-68,-60,-60,0,0,0,0,0,-70,-58,-85,-94,-91,-89,-84,-84,-80,-85,-132,-120,-111,-95,-94,-66,-66,-66,-75,-54,-57,-59,-58,-54,-64,-56,-54,-45,-75,-75,-79,-73,-73,-75,-83,-67,-82,-80,-88,-87,-93,-94,-101,-101,-1513,-82,-82,-71,-80,-81,-93,-93,-102,-83,-101,-95,-192,-191,-185,-164,-177,-178,-266,-237,-1854,-1432,-1660,-1677,-906,-595,-2501,-2450,-2500,-588,-2392,-2327,-2178,-1297,-2123,-1952,-1834,-1807,-2036,-2036,-1554,-1274,-29956,-29957,-29955,-29953,-5097,-10806,-7163,-7227,-29973,-29975,-29974,-29975,-29979,-29979,-29981,-29982,-29982,-29983,-29983,-29984,-29984,-29985,-29985,-29985,-29985,-29986,-29986,-29987,-29987,-29988,-29993,-29991,-29991,-29990,-29991,-29992]} 1. d4 {[%emt 0:00:03][%cal Bd2d4,Bd4c5][%mdl 32]} Nf6 {[%emt 0:00:08][%cal Bg8f6,Bf6e4,Be4d2][%mdl 32]} 2. c4 {[%emt 0:00:07]} e6 {[%emt 0:00:05]} 3. Nc3 {[%emt 0:00:05]} Bb4 {[%emt 0:00:06]} 4. Qb3 {[%emt 0:00:11]} c5 {[%emt 0:00:47]} 5. dxc5 {[%emt 0:00:06]} Nc6 {[%emt 0:00:32]} 6. Nf3 {[%emt 0:02:55]} Ne4 {[%emt 0:01:21]} 7. Bd2 {[%emt 0:00:07]} Nxd2 {[%emt 0:00:55]} 8. Nxd2 {[%emt 0:00:05]} O-O {[%emt 0:00:16] E23: Nimzo-Indian: 4 Qb3 c5 5 dxc5 Nc6.} 9. g3 {[%emt 0:00:54]} Bxc5 {[%emt 0:02:45][%cal Od7d5]} 10. Bg2 {[%emt 0:00:18]} a6 {[%emt 0:01:00][%cal Ob7b5] The position is equal.} 11. O-O {[%emt 0:05:43]} Be7 {[%emt 0:02:57][%cal Ob7b5]} 12. Rac1 {[%emt 0:09:00] [#]} Rb8 $146 {[%emt 0:03:02]} ({Predecessor:} 12... b6 13. c5 bxc5 14. Bxc6 dxc6 15. Nc4 Qc7 16. Qb6 Qxb6 17. Nxb6 Rb8 18. Nca4 a5 {½-½ Zakharov,V (2074)-Shchebenyuk,M (2201) RUS HKMC-07 email 2015}) 13. a4 {[%emt 0:10:39]} b6 {[%emt 0:03:20]} 14. Qd1 {[%emt 0:07:31]} Bb7 {[%emt 0:02:48]} 15. e4 {[%emt 0:08:05]} d6 {[%emt 0:10:17]} 16. Nf3 {[%emt 0:04:47]} Bf6 {[%emt 0:03:55]} 17. Rc2 {[%emt 0:04:15]} Qe7 {[%emt 0:04:34]} 18. Re1 {[%emt 0:04:54]} Rfd8 {[%emt 0:04:47]} 19. Qe2 {[%emt 0:03:52]} Nb4 {[%emt 0:09:50]} 20. Rcc1 {[%emt 0:02:01]} Rbc8 {[%emt 0:00:52]} 21. b3 {[%emt 0:06:24]} Qc7 {[%emt 0:03:13]} 22. Na2 {[%emt 0:07:52]} Nc6 {[%emt 0:02:46]} 23. Nc3 {[%emt 0:02:41]} Na5 {[%emt 0:04:19]} 24. Nd2 {[%emt 0:02:41]} Qc5 {[%emt 0:02:17] White is weak on the dark squares} 25. Kh1 {[%emt 0:04:11]} (25. Nd1 $15) 25... Qb4 $17 {[%emt 0:03:42][%csl LRb3,LRc3]} 26. Qe3 {[%emt 0:02:15]} Nc6 {[%emt 0:16:30]} ({Better is} 26... Nxb3 $17 27. Nxb3 Qxb3) 27. f4 $15 {[%emt 0:02:53]} Qc5 {[%emt 0:01:55]} 28. Nf3 {[%emt 0:02:14]} Na5 {[%emt 0:01:13]} 29. Nd2 {[%emt 0:02:07]} Bd4 {[%emt 0:06:33]} (29... g6 $15) 30. Qd3 $11 {[%emt 0:00:21][%cal Ob3b4] aiming for b4!} Nc6 {[%emt 0:03:28]} (30... Bf6 $11) 31. Nf3 $15 {[%emt 0:00:45]} Bf6 {[%emt 0:00:36]} 32. Qe3 {[%emt 0:00:35]} Nb4 {[%emt 0:00:32]} 33. h3 {[%emt 0:03:01]} d5 $36 {[%emt 0:01:43][%mdl 2048] Black is in control.} 34. exd5 {[%emt 0:02:44]} Qxe3 {[%emt 0:00:35]} 35. Rxe3 {[%emt 0:00:04]} exd5 {[%emt 0:00:04]} 36. Ne5 {[%emt 0:01:16]} Rc7 {[%emt 0:03:26] And now ...Bxe5 would win.} 37. Re2 {[%emt 0:00:43]} (37. Rd1 $142) 37... Bxe5 $17 {[%emt 0:00:57]} 38. fxe5 {[%emt 0:00:06]} dxc4 {[%emt 0:00:28]} 39. Bxb7 {[%emt 0:00:06]} Rxb7 {[%emt 0:00:16]} 40. bxc4 {[%emt 0:00:21][%cal Oc3d5]} Rc7 {[%emt 0:00:25]} 41. Na2 {[%emt 0:08:55]} Nd3 {[%emt 0:07:31]} 42. Rb1 {[%emt 0:04:50]} Rxc4 {[%emt 0:03:39]} 43. Rxb6 {[%emt 0:02:24]} Rxa4 {[%emt 0:03:00][%cal Od3e5]} 44. Rd6 {[%emt 0:00:20][%cal Rd6d8]} Rd4 {[%emt 0:02:11]} 45. Rxa6 {[%emt 0:02:48]} Nc5 $1 {[%emt 0:01:12]} 46. Rd6 {[%emt 0:01:55]} R8xd6 {[%emt 0:02:57]} 47. exd6 {[%emt 0:00:06][%cal Re2e8][%mdl 4096] Endgame KRN-KRN} Ne4 {[%emt 0:03:09]} 48. Kg2 {[%emt 0:01:01][%cal Od6d7]} Nxd6 {[%emt 0:02:04]} 49. Nc3 {[%emt 0:01:22][%cal Oc3b5]} h5 {[%emt 0:00:15]} 50. h4 {[%emt 0:04:41]} g6 {[%emt 0:01:33]} 51. Rf2 {[%emt 0:01:23]} Nf5 {[%emt 0:01:34]} 52. Ne2 {[%emt 0:01:08]} Rd3 {[%emt 0:00:48]} 53. Rf3 {[%emt 0:00:44]} Rd2 {[%emt 0:00:06]} 54. Kf1 {[%emt 0:01:23][%mdl 8192]} (54. Rf2 $17) 54... Kg7 $2 {[%emt 0:01:01]} (54... Rxe2 $1 $19 {is more deadly.} 55. Rxf5 Ra2) 55. Ra3 {[%emt 0:00:48]} Nh6 {[%emt 0:02:18] Black has more active pieces.} 56. Ke1 {[%emt 0:03:00]} Rb2 {[%emt 0:00:14]} 57. Rd3 {[%emt 0:00:39]} Ng4 {[%emt 0:01:23]} 58. Rc3 {[%emt 0:01:31]} Ne5 {[%emt 0:00:54]} 59. Kf2 {[%emt 0:00:24]} Kf6 {[%emt 0:00:13]} 60. Ke3 {[%emt 0:00:40]} (60. Ra3 $17) 60... Kf5 $1 $19 {[%emt 0:01:28]} 61. Rc5 {[%emt 0:01:04] [#]} f6 $1 {[%emt 0:00:32]} 62. Ra5 {[%emt 0:00:31] [#]} Kg4 $1 {[%emt 0:01:44] Strongly threatening ...Nc4+.} 63. Ra4+ {[%emt 0:00:24]} (63. Kf2 $142) 63... Kh3 {[%emt 0:00:17] ...Ng4+ would be deadly.} 64. Ra6 $2 {[%emt 0:00:43]} (64. Ra1) 64... Ng4+ {[%emt 0:00:53]} 65. Kd3 {[%emt 0:00:33] [#]} Rxe2 $1 {[%emt 0:01:44][%mdl 576] Remove Defender} 66. Kxe2 {[%emt 0:00:05]} Kxg3 {[%emt 0:00:02] KR-KN} 67. Ra4 {[%emt 0:00:19]} Kxh4 {[%emt 0:00:11]} 68. Kf3 {[%emt 0:00:30]} Kg5 {[%emt 0:00:10] Hoping for ...f5.} 69. Kg3 {[%emt 0:00:27]} f5 {[%emt 0:00:28]} 70. Rb4 {[%emt 0:00:24]} Nf6 {[%emt 0:01:19]} 71. Kh3 {[%emt 0:00:37]} Ne4 {[%emt 0:00:53]} 72. Rb6 {[%emt 0:00:16]} h4 {[%emt 0:00:36]} 73. Rb4 {[%emt 0:00:24]} Kh5 {[%emt 0:00:31] ...g5 is the strong threat.} 74. Rb5 {[%emt 0:00:08]} Ng5+ {[%emt 0:00:28]} 75. Kh2 {[%emt 0:00:10]} Kg4 {[%emt 0:00:23]} 76. Rb4+ {[%emt 0:01:34]} f4 {[%emt 0:00:12]} 77. Kg2 {[%emt 0:00:24]} Nf3 {[%emt 0:00:36] ( -> ...g5)} 78. Rb3 {[%emt 0:00:24]} h3+ {[%emt 0:00:43]} 79. Kh1 {[%emt 0:00:15]} g5 {[%emt 0:00:18] Black mates.} 80. Rb4 {[%emt 0:00:22]} Ne5 {[%emt 0:00:38]} 81. Re4 {[%emt 0:00:37]} Nd3 {[%emt 0:00:19]} 82. Rd4 {[%emt 0:00:25]} Nf2+ {[%emt 0:00:26]} 83. Kh2 {[%emt 0:00:10]} Kh4 {[%emt 0:00:41]} 84. Rd8 {[%emt 0:01:00]} Ng4+ {[%emt 0:00:06]} 85. Kh1 {[%emt 0:00:09]} Kg3 {[%emt 0:00:17]} 86. Rh8 {[%emt 0:00:43]} Nf2+ {[%emt 0:00:14]} ({Worse is} 86... h2 87. Rh3+ Kxh3 $11) 87. Kg1 {[%emt 0:00:06]} g4 {[%emt 0:00:08]} 88. Rh7 {[%emt 0:00:18]} f3 {[%emt 0:00:27][%cal Bf4f3,Bf3f2][%mdl 32]} 89. Rh8 {[%emt 0:00:15]} Ne4 {[%emt 0:00:35]} 90. Kh1 {[%emt 0:00:24]} Kf2 {[%emt 0:00:35]} 91. Ra8 {[%emt 0:01:37]} Ke2 {[%emt 0:01:14]} 92. Re8 {[%emt 0:00:34]} f2 {[%emt 0:00:36] Weighted Error Value: White=0.23 (precise) /Black=0.20 (precise)} 0-1

[Event "European Women-ch 2023"]
[Site "Petrovac"]
[Date "2023.03.18"]
[Round "1.18"]
[White "Goriachkina, Oksana"]
[Black "Abdulla, Khayala"]
[Result "1/2-1/2"]
[ECO "D27"]
[WhiteElo "1759"]
[BlackElo "2221"]
[Annotator "TA"]
[PlyCount "99"]
[EventDate "2023.03.15"]
[EventType "swiss"]
[EventCountry "MNE"]
[SourceTitle "playchess.com"]
[Source "ChessBase"]
[SourceQuality "1"]
[TimeControl "40/5400+30:1800+30"]

{[%evp 24,99,0,0,18,0,0,0,8,5,8,0,22,26,128,138,136,132,131,85,85,95,115,114,115,87,96,79,80,77,84,61,61,0,84,0,61,61,61,52,53,0,31,25,61,61,61,61,61,61,61,61,61,61,61,61,61,61,61,61,61,61,61,61,61,61,61,61,61,61,61,61,61,61,61,61,61,61]} 1. d4 {[%emt 0:00:02]} Nf6 {[%emt 0:00:21]} 2. c4 {[%emt 0:00:04]} e6 {[%emt 0:00:18]} 3. Nf3 {[%emt 0:00:09]} d5 {[%emt 0:00:28]} 4. Nc3 {[%emt 0:01:27]} dxc4 {[%emt 0:00:24]} 5. e3 {[%emt 0:00:25]} a6 {[%emt 0:00:12]} 6. a4 {[%emt 0:08:48]} c5 {[%emt 0:04:14]} 7. Bxc4 {[%emt 0:00:08]} Nc6 {[%emt 0:00:40]} 8. O-O {[%emt 0:02:49]} Be7 {[%emt 0:02:30][%cal Bf8e7,Be7f6,Bf6d4][%mdl 32]} 9. Qe2 {[%emt 0:01:25]} O-O {[%emt 0:02:52]} 10. Rd1 {[%emt 0:01:04]} Qc7 {[%emt 0:01:54]} 11. d5 {[%emt 0:18:28]} exd5 {[%emt 0:04:09]} 12. Nxd5 {[%emt 0:00:03]} Nxd5 {[%emt 0:00:13]} 13. Bxd5 {[%emt 0:00:02]} Bf6 {[%emt 0:02:31] D27: Queen's Gambit Accepted: Classical main line: 7 e4!? and 7 a4.} 14. e4 {[%emt 0:05:46]} Bg4 {[%emt 0:04:30]} 15. Be3 $1 {[%emt 0:09:04] [#] Prevents Nd4.} Nd4 $146 {[%emt 0:21:25] The position is equal.} ({Predecessor:} 15... Bxf3 16. Qxf3 Bxb2 17. Rab1 Bd4 18. Bxc6 Qxc6 19. Bxd4 cxd4 20. Rxd4 b5 21. axb5 axb5 {½-½ Gagunashvili,M (2472)-Kharlov,A (2633) EU-ch 3rd Batumi 2002 (12)}) 16. Bxd4 {[%emt 0:01:42]} Bxd4 {[%emt 0:00:05]} 17. Rab1 {[%emt 0:08:06]} Rad8 {[%emt 0:05:45]} 18. b4 {[%emt 0:10:44]} Rd6 {[%emt 0:08:49]} (18... Bxf3 $11 {remains equal.} 19. Qxf3 (19. gxf3 Qe5 $17) 19... b6) 19. bxc5 $16 {[%emt 0:08:33]} Qxc5 {[%emt 0:27:25]} 20. Rxd4 {[%emt 0:05:13][%cal Bd1d4,Bd4c4,Bc4c5][%mdl 32]} Bxf3 {[%emt 0:00:17]} 21. Qc4 {[%emt 0:06:25]} ({Better is} 21. Qd3 Be2 22. Qd2 (22. Qxe2 Qxd4 23. Rxb7 Qa1+ 24. Qf1 Qxa4 $17)) 21... Qxc4 {[%emt 0:00:46][%mdl 64] [#] Remove Defender} 22. Rxc4 {[%emt 0:00:02]} Rg6 {[%emt 0:00:13]} 23. g3 {[%emt 0:00:03]} b5 {[%emt 0:04:27]} 24. axb5 {[%emt 0:01:15]} axb5 {[%emt 0:00:44]} 25. Rc5 {[%emt 0:00:17]} ({Reject} 25. Rxb5 $6 Be2 $15) 25... Rb6 {[%emt 0:02:36]} 26. Rb3 {[%emt 0:07:02]} Be2 {[%emt 0:01:22]} 27. Rb2 {[%emt 0:01:13]} Bf3 {[%emt 0:00:16]} 28. Rb3 {[%emt 0:02:56] White is more active.} (28. Rcxb5 $2 {is the wrong capture.} Rc8 29. Bxf7+ (29. Rxb6 $2 Rc1#) 29... Kh8 $19) (28. Rbxb5 $5 Rxb5 29. Rxb5 $16) 28... Be2 {[%emt 0:00:04]} 29. Rb2 {[%emt 0:00:04]} Bf3 {[%emt 0:00:04]} 30. Rbxb5 {[%emt 0:01:00]} (30. Rcxb5 $2 {too greedy.} Rc8 31. Bxf7+ (31. Rxb6 $2 Rc1#) 31... Kh8 $19) 30... Rxb5 {[%emt 0:00:16]} 31. Rxb5 $14 {[%emt 0:00:01][%mdl 4096] Endgame KRB-KRB} Rc8 {[%emt 0:00:45][%cal Rc8c1] [#]} 32. Bc6 {[%emt 0:01:35]} g6 {[%emt 0:04:37]} (32... Rd8 $5 33. Bd5 Rc8 34. Bxf7+ Kf8 $16) 33. Rb3 {[%emt 0:00:29]} Bg4 {[%emt 0:01:13]} 34. Bb7 {[%emt 0:00:25] White is slightly better.} Rb8 {[%emt 0:00:24]} 35. Bd5 {[%emt 0:00:36] Wards off Be6} Rxb3 {[%emt 0:00:17]} 36. Bxb3 {[%emt 0:00:01] KB-KB} Bf3 {[%emt 0:00:21]} 37. Bc2 {[%emt 0:00:10]} Kg7 {[%emt 0:00:38]} 38. e5 {[%emt 0:00:27]} f6 {[%emt 0:00:14]} 39. exf6+ {[%emt 0:00:11]} Kxf6 {[%emt 0:00:01]} 40. Bd3 {[%emt 0:00:00]} h6 {[%emt 0:00:00]} 41. Bf1 {[%emt 0:03:45]} g5 {[%emt 0:00:43]} 42. Bg2 {[%emt 0:00:16]} Be2 {[%emt 0:00:07]} 43. f3 {[%emt 0:00:20]} Bb5 {[%emt 0:00:40]} 44. Kf2 {[%emt 0:00:12]} Ba6 {[%emt 0:01:57]} 45. Ke3 {[%emt 0:02:37]} Bc8 {[%emt 0:00:52]} 46. Bf1 {[%emt 0:02:36]} Bb7 {[%emt 0:00:11]} 47. Bd3 {[%emt 0:02:21]} Bc6 {[%emt 0:00:19]} 48. Be4 {[%emt 0:02:30]} Ba4 {[%emt 0:00:31]} 49. f4 {[%emt 0:03:56]} Bd1 {[%emt 0:03:01]} 50. Bf3 {[%emt 0:02:59] Weighted Error Value: White=0.11 (very precise) /Black=0.10 (very precise)} 1/2-1/2